bitfinex-derivatives/quotes_SOLF0:USTF0_20260126
["timestamp","ask_amount","ask_price","bid_price","bid_amount"]
[1769398175221,2.8361427,121.61,121.55,3.47760742]
[1769398175618,10.2469427,121.61,121.55,3.47760742]
[1769398175814,7.4108,121.61,121.55,3.47760742]
[1769398176021,2.8361427,121.6,121.55,3.47760742]
[1769398178626,2.8361427,121.59,121.53,3.47760742]
[1769398181223,5.59393886,121.58,121.53,3.47760742]
[1769398181616,2.8361427,121.58,121.53,3.47760742]
[1769398195031,10.2487427,121.58,121.53,3.47760742]
[1769398195226,2.8361427,121.57,121.52,205.9]
[1769398195433,2.8361427,121.57,121.5,312.08779494]
[1769398195728,2.8361427,121.57,121.5,3.47760742]
[1769398195729,7.4144,121.55,121.5,3.47760742]
[1769398195929,10.2505427,121.55,121.5,3.47760742]
[1769398199029,2.8361427,121.57,121.51,2.75961023]
[1769398199229,2.8361427,121.57,121.53,6.23721765]
[1769398200036,2.8361427,121.59,121.53,6.23721765]
[1769398201532,2.8361427,121.58,121.53,6.23721765]
[1769398203035,2.8361427,121.6,121.54,3.47760742]
[1769398203336,2.83664331,121.65,121.59,6.32592506]
[1769398204333,5.59625354,121.65,121.59,3.56631483]
[1769398204937,13.00495354,121.65,121.59,3.56631483]
[1769398206739,2.83664331,121.65,121.59,3.56631483]
[1769398207432,13.00365354,121.67,121.61,3.56631483]
[1769398208036,2.83664331,121.67,121.61,3.56631483]
[1769398208336,2.83664331,121.67,121.62,3.56631483]
[1769398209940,5.59625354,121.67,121.62,3.56631483]
[1769398213143,5.59625354,121.65,121.59,3.56631483]
[1769398213544,2.83664331,121.64,121.59,3.56631483]
[1769398214043,2.83664331,121.64,121.57,83.89961023]
[1769398214044,5.59625354,121.63,121.57,3.56631483]
[1769398214639,2.83664331,121.63,121.57,3.56631483]
[1769398215642,2.83664331,121.62,121.57,3.56631483]
[1769398215839,2.83664331,121.62,121.53,7.4152]
[1769398215840,5.59625354,121.62,121.55,3.56631483]
[1769398216032,2.75961023,121.61,121.55,3.56631483]
[1769398217142,13.00655354,121.62,121.55,3.56631483]
[1769398218744,2.75961023,121.61,121.55,3.56631483]
[1769398220249,13.00655354,121.62,121.55,3.56631483]
[1769398222149,2.75961023,121.61,121.55,3.56631483]
[1769398225446,5.59380771,121.61,121.55,3.56631483]
[1769398225648,2.83419748,121.61,121.55,3.56631483]
[1769398229448,2.83419748,121.61,121.56,3.47670764]
[1769398229752,5.59380771,121.61,121.56,3.47670764]
[1769398231652,2.75961023,121.6,121.56,3.47670764]
[1769398237458,5.59380771,121.61,121.56,3.47670764]
[1769398237849,2.8346971,121.6,121.54,3.30880213]
[1769398238454,2.8346971,121.59,121.54,3.30880213]
[1769398238655,5.59430733,121.58,121.52,3.30880213]
[1769398238856,5.59430733,121.56,121.5,216.84880213]
[1769398239853,2.75961023,121.55,121.5,216.84880213]
[1769398240457,2.75961023,121.54,121.5,216.84880213]
[1769398240856,5.59430733,121.54,121.48,305.5507894]
[1769398241055,2.75961023,121.51,121.46,10.72820213]
[1769398241256,2.8346971,121.52,121.46,10.72820213]
[1769398241257,5.59430733,121.52,121.47,3.30880213]
[1769398242159,2.8346971,121.52,121.47,3.30880213]
[1769398243160,2.8346971,121.52,121.45,3.30880213]
[1769398243365,5.59430733,121.53,121.46,3.30880213]
[1769398243557,5.59648667,121.53,121.47,3.30880213]
[1769398245162,2.8346971,121.53,121.47,3.30880213]
[1769398246453,5.59648667,121.53,121.47,3.30880213]
[1769398247366,2.8346971,121.51,121.45,6.0705917]
[1769398247667,5.59648667,121.51,121.45,3.30880213]
[1769398248367,2.8346971,121.5,121.45,3.30880213]
[1769398249464,2.76178957,121.51,121.45,3.30880213]
[1769398249665,5.59648667,121.51,121.45,3.30880213]
[1769398251067,2.76178957,121.49,121.44,3.30880213]
[1769398251773,5.59648667,121.5,121.44,3.30880213]
[1769398252766,2.8346971,121.5,121.44,6.0705917]
[1769398252962,2.8346971,121.51,121.45,3.30880213]
[1769398253464,5.59648667,121.51,121.45,3.30880213]
[1769398256664,7.4146,121.55,121.46,3.30880213]
[1769398256870,5.59648667,121.53,121.46,6.0705917]
[1769398257068,7.4146,121.55,121.44,115.4323]
[1769398257069,2.8346971,121.51,121.44,3.30880213]
[1769398257268,2.8346971,121.5,121.44,3.30880213]
[1769398258967,2.8346971,121.5,121.44,10.72960213]
[1769398259169,2.8346971,121.5,121.44,13.4913917]
[1769398259366,5.59648667,121.52,121.45,3.30880213]
[1769398259569,2.8346971,121.51,121.45,3.30880213]
[1769398260473,2.8346971,121.5,121.45,3.30880213]
[1769398261172,2.8346971,121.49,121.43,3.30880213]
[1769398261872,2.8346971,121.49,121.43,6.0705917]
[1769398262075,2.8346971,121.47,121.41,1.43259988]
[1769398262375,2.8346971,121.47,121.4,13.4936917]
[1769398262570,2.8346971,121.47,121.41,3.30880213]
[1769398262769,2.8346971,121.47,121.42,3.30880213]
[1769398263072,2.8346971,121.47,121.42,6.0705917]
[1769398263567,2.8346971,121.47,121.42,3.30880213]
[1769398264072,2.8346971,121.47,121.42,13.4926917]
[1769398264271,5.6015621,121.49,121.43,3.48685295]
[1769398264474,2.83977253,121.49,121.43,6.24864252]
[1769398266473,2.83977253,121.49,121.44,10.90765295]
[1769398267775,2.76178957,121.51,121.44,10.90765295]
[1769398267776,5.6015621,121.51,121.45,3.48685295]
[1769398267978,2.83977253,121.51,121.45,3.48685295]
[1769398268780,2.83977253,121.5,121.44,10.90765295]
[1769398268983,2.83977253,121.5,121.45,3.48685295]
[1769398269276,2.83977253,121.52,121.45,7.4202]
[1769398269473,2.83977253,121.51,121.46,3.48685295]
[1769398273582,2.83977253,121.49,121.43,7.4213]
[1769398273880,2.83977253,121.49,121.43,3.48685295]
[1769398274179,2.83977253,121.49,121.43,6.24864252]
[1769398275080,2.83977253,121.49,121.44,10.90765295]
[1769398278778,2.83977253,121.49,121.43,2.76178957]
[1769398278779,2.83915954,121.52,121.46,3.51961354]
[1769398279881,10.25325954,121.56,121.5,3.51961354]
[1769398280086,13.01504911,121.56,121.5,3.51961354]
[1769398280383,5.60094911,121.56,121.5,3.51961354]
[1769398280581,2.83915954,121.55,121.48,10.93811354]
[1769398280785,2.83915954,121.55,121.48,13.69990311]
[1769398281187,2.83915954,121.55,121.49,3.51961354]
[1769398283486,2.83915954,121.55,121.49,6.28140311]
[1769398283686,2.83915954,121.55,121.5,2.76178957]
[1769398284290,2.83915954,121.55,121.49,6.28140311]
[1769398286082,7.4133,121.57,121.51,3.51961354]
[1769398286289,5.60094911,121.58,121.51,6.28140311]
[1769398288391,2.83915954,121.58,121.52,6.28140311]
[1769398291093,2.83915954,121.6,121.54,3.51961354]
[1769398291393,2.83915954,121.6,121.54,6.28140311]
[1769398291888,2.83915954,121.62,121.55,6.28140311]
[1769398292391,2.83915954,121.62,121.56,3.51961354]
[1769398295592,5.60094911,121.62,121.56,3.51961354]
[1769398297389,13.01114911,121.62,121.56,3.51961354]
[1769398298694,2.76178957,121.61,121.56,3.51961354]
[1769398300994,5.59670986,121.61,121.54,3.38228516]
[1769398301195,2.76178957,121.6,121.54,3.38228516]
[1769398301698,2.83492029,121.58,121.53,3.38228516]
[1769398301897,5.59670986,121.58,121.53,3.38228516]
[1769398302503,13.00930986,121.58,121.53,3.38228516]
[1769398302701,2.76178957,121.57,121.53,3.38228516]
[1769398302902,2.76178957,121.57,121.51,3.38228516]
[1769398302903,2.76178957,121.56,121.51,3.38228516]
[1769398303597,2.76034116,121.56,121.51,3.38228516]
[1769398303804,2.76034116,121.55,121.49,3.38228516]
[1769398303993,5.59526145,121.54,121.49,3.38228516]
[1769398304900,13.01046145,121.54,121.49,3.38228516]
[1769398305098,2.83492029,121.54,121.49,3.38228516]
[1769398308108,5.59526145,121.54,121.49,3.38228516]
[1769398310400,138.08,121.59,121.45,194.7068]
[1769398310401,2.83492029,121.53,121.45,3.38228516]
[1769398310700,5.59526145,121.51,121.45,3.38228516]
[1769398313012,2.83492029,121.51,121.45,3.38228516]
[1769398313511,5.59526145,121.51,121.45,3.38228516]
[1769398313708,2.76034116,121.51,121.45,3.38228516]
[1769398313915,5.59526145,121.54,121.47,3.38228516]
[1769398314103,2.76034116,121.53,121.47,3.38228516]
[1769398328616,5.59526145,121.54,121.48,3.26910283]
[1769398339728,2.83756043,121.53,121.48,3.26910283]
[1769398339929,2.83756043,121.53,121.47,7.4189]
[1769398340132,2.83756043,121.52,121.47,7.4189]
[1769398340626,2.83756043,121.52,121.47,10.99424287]
[1769398341128,5.59790159,121.54,121.48,3.57534287]
[1769398341328,2.83756043,121.53,121.48,3.57534287]
[1769398346438,2.83756043,121.53,121.47,7.4189]
[1769398346638,2.83756043,121.53,121.47,10.99424287]
[1769398347639,5.59790159,121.53,121.47,10.99424287]
[1769398349335,2.83756043,121.52,121.47,10.99424287]
[1769398351844,2.76034116,121.53,121.48,3.57534287]
[1769398356039,5.59700402,121.53,121.48,3.57534287]
[1769398356543,2.83666286,121.53,121.48,3.57534287]
[1769398378258,7.4145,121.55,121.49,3.56369217]
[1769398378259,5.59837691,121.55,121.49,3.56369217]
[1769398378452,6.62175161,121.54,121.49,3.56369217]
[1769398378652,2.76171405,121.56,121.5,3.56369217]
[1769398378853,5.59837691,121.57,121.51,3.56369217]
[1769398379053,6.62280191,121.56,121.51,3.56369217]
[1769398379254,2.83666286,121.56,121.51,3.56369217]
[1769398379453,9.45539539,121.56,121.51,3.56369217]
[1769398380560,2.83666286,121.56,121.51,3.56369217]
[1769398383264,5.59712184,121.58,121.52,3.30526328]
[1769398383464,2.83540779,121.59,121.53,3.30526328]
[1769398383758,2.83540779,121.59,121.54,3.30526328]
[1769398387067,13.00812184,121.61,121.54,3.30526328]
[1769398387266,13.00812184,121.61,121.55,3.30526328]
[1769398387460,2.83540779,121.6,121.55,3.30526328]
[1769398392971,2.83540779,121.59,121.55,3.30526328]
[1769398393162,5.59712184,121.57,121.51,3.30526328]
[1769398393361,2.83540779,121.56,121.51,3.30526328]
[1769398398468,5.59720618,121.57,121.51,3.30526328]
[1769398401775,2.83549213,121.57,121.51,3.30526328]
[1769398402475,2.83549213,121.56,121.51,3.30526328]
[1769398403678,5.59720618,121.56,121.51,3.30526328]
[1769398403976,5.59720618,121.55,121.49,3.34910727]
[1769398408080,2.83549213,121.53,121.47,3.34910727]
[1769398408593,2.83549213,121.52,121.47,3.34910727]
[1769398408877,5.59720618,121.54,121.47,3.34910727]
[1769398409084,5.59720618,121.54,121.48,3.34910727]
[1769398410085,5.59720618,121.53,121.48,3.34910727]
[1769398411377,5.59720618,121.52,121.46,3.34910727]
[1769398412279,2.83549213,121.52,121.46,3.34910727]
[1769398414584,5.59720618,121.52,121.46,3.34910727]
[1769398419484,2.76171405,121.52,121.46,3.34910727]
[1769398419689,2.83936809,121.51,121.46,3.34910727]
[1769398428183,2.83936809,121.53,121.46,3.34910727]
[1769398428476,2.83936809,121.52,121.46,3.34910727]
[1769398433501,2.83936809,121.52,121.41,175.08]
[1769398433695,2.83936809,121.46,121.4,3.49639218]
[1769398434094,2.83936809,121.48,121.41,3.49639218]
[1769398434400,5.60173621,121.48,121.41,3.49639218]
[1769398434792,5.60173621,121.47,121.41,3.49639218]
[1769398437302,5.60173621,121.45,121.39,3.49639218]
[1769398438793,0.05760997,121.43,121.39,3.49639218]
[1769398439102,0.05760997,121.43,121.4,3.49639218]
[1769398439285,2.83936809,121.47,121.42,3.49639218]
[1769398439698,5.60173621,121.47,121.4,3.55109261]
[1769398439894,5.65934618,121.46,121.4,3.49639218]
[1769398440298,2.89697806,121.45,121.4,3.49639218]
[1769398440690,5.65934618,121.45,121.42,0.05336017]
[1769398441697,2.76236812,121.46,121.42,0.05336017]
[1769398441892,5.65934618,121.47,121.42,0.05336017]
[1769398442197,2.89697806,121.47,121.41,3.49639218]
[1769398442693,2.89697806,121.47,121.43,0.05706644]
[1769398442893,2.89697806,121.47,121.37,3.49639218]
[1769398443100,2.83991162,121.44,121.38,3.49639218]
[1769398443702,2.83835487,121.42,121.36,4.95196819]
[1769398443892,2.83835487,121.42,121.36,3.51883733]
[1769398444097,2.83835487,121.42,121.37,3.51883733]
[1769398444903,0.05387247,121.41,121.37,3.51883733]
[1769398445099,0.05387247,121.41,121.37,6.28120545]
[1769398445298,2.83835487,121.43,121.38,0.05426189]
[1769398445701,2.83835487,121.43,121.38,3.57309922]
[1769398446304,2.83835487,121.42,121.38,0.05426189]
[1769398448200,5.60072299,121.44,121.38,3.57309922]
[1769398448400,2.83835487,121.43,121.38,3.57309922]
[1769398453707,2.83835487,121.45,121.39,3.51883733]
[1769398453912,2.83835487,121.45,121.4,3.51883733]
[1769398454612,2.83835487,121.45,121.41,0.05360882]
[1769398455607,2.83835487,121.44,121.41,0.05360882]
[1769398455912,5.60072299,121.43,121.38,3.51883733]
[1769398457209,2.8389819,121.42,121.36,3.2683675]
[1769398457417,5.60135002,121.42,121.36,3.2683675]
[1769398458807,0.05408949,121.4,121.36,3.2683675]
[1769398460314,2.89307139,121.4,121.34,3.2683675]
[1769398460515,5.65543951,121.4,121.34,3.2683675]
[1769398461018,5.60135002,121.39,121.33,3.2683675]
[1769398461614,2.8389819,121.38,121.33,3.2683675]
[1769398462518,0.05631035,121.37,121.33,3.2683675]
[1769398463518,0.05631035,121.37,121.33,0.8083675]
[1769398471729,3.30718662,121.4,121.35,3.2683675]
[1769398473622,6.06955474,121.4,121.35,3.2683675]
[1769398479235,3.28577015,121.39,121.35,3.2683675]
[1769398488937,3.28577015,121.39,121.34,2.82916236]
[1769398489138,3.28577015,121.39,121.34,0.06156962]
[1769398489445,3.28577015,121.38,121.34,0.06156962]
[1769398492647,3.28577015,121.39,121.34,3.38436464]
[1769398492846,3.28577015,121.39,121.34,6.15195738]
[1769398494142,10.19079274,121.41,121.35,3.32279502]
[1769398494351,10.70897015,121.41,121.35,3.32279502]
[1769398494749,3.28577015,121.4,121.35,3.32279502]
[1769398495048,3.28577015,121.4,121.37,0.05477211]
[1769398495846,3.28577015,121.42,121.37,3.37756713]
[1769398496038,3.28577015,121.44,121.38,6.09038776]
[1769398496240,10.04910641,121.44,121.38,6.09038776]
[1769398496650,20.23819915,121.44,121.38,3.32279502]
[1769398496850,13.47486289,121.44,121.38,3.32279502]
[1769398497049,13.47486289,121.44,121.4,0.06287806]
[1769398498251,13.47486289,121.44,121.4,0.00327015]
[1769398498752,3.28577015,121.43,121.4,0.00327015]
[1769398499048,13.47526289,121.43,121.4,0.00327015]
[1769398501051,10.70767015,121.43,121.4,0.00327015]
[1769398501849,3.28577015,121.42,121.4,0.00327015]
[1769398502756,3.28577015,121.41,121.36,3.32279502]
[1769398505648,6.27420337,121.43,121.37,3.2911619]
[1769398505854,3.50661063,121.42,121.37,3.2911619]
[1769398507664,6.27420337,121.42,121.37,3.2911619]
[1769398509165,3.50661063,121.42,121.37,3.2911619]
[1769398512463,6.27420337,121.42,121.37,3.2911619]
[1769398514766,2.76759274,121.43,121.37,3.2911619]
[1769398515170,6.27420337,121.43,121.37,3.2911619]
[1769398515969,6.27420337,121.43,121.37,10.7162619]
[1769398516166,3.50661063,121.43,121.38,3.2911619]
[1769398516662,6.12850489,121.45,121.39,3.32730044]
[1769398518872,3.36091215,121.44,121.39,3.32730044]
[1769398519870,6.12850489,121.44,121.39,3.32730044]
[1769398520272,2.76759274,121.43,121.39,3.32730044]
[1769398520773,6.12850489,121.43,121.39,3.32730044]
[1769398522878,3.36091215,121.43,121.39,3.32730044]
[1769398524373,2.76759274,121.44,121.39,3.32730044]
[1769398524574,6.12850489,121.45,121.39,3.32730044]
[1769398525674,3.36091215,121.44,121.39,3.32730044]
[1769398526670,6.12850489,121.44,121.39,3.32730044]
[1769398528982,3.36091215,121.43,121.39,3.32730044]
[1769398529479,6.12850489,121.43,121.39,3.32730044]
[1769398530676,6.12850489,121.42,121.37,3.32730044]
[1769398530874,6.12850489,121.41,121.35,3.32730044]
[1769398531281,6.12850489,121.41,121.36,3.32730044]
[1769398531282,3.36091215,121.41,121.36,3.32730044]
[1769398533584,3.32090561,121.39,121.34,3.2668716]
[1769398534679,2.76759274,121.4,121.34,3.2668716]
[1769398536085,6.08849835,121.4,121.34,3.2668716]
[1769398536782,3.32090561,121.4,121.35,3.2668716]
[1769398537084,6.08849835,121.4,121.35,3.2668716]
[1769398537284,6.08849835,121.39,121.33,3.2668716]
[1769398538578,3.32090561,121.39,121.33,3.2668716]
[1769398541882,3.32090561,121.39,121.34,3.2668716]
[1769398542086,3.32090561,121.39,121.35,3.2668716]
[1769398542286,6.08849835,121.41,121.35,3.2668716]
[1769398542877,3.32090561,121.4,121.35,3.2668716]
[1769398544386,6.08849835,121.42,121.35,3.2668716]
[1769398545790,3.32090561,121.41,121.35,3.2668716]
[1769398551581,7.4217,121.43,121.33,3.2668716]
[1769398551582,3.32090561,121.38,121.33,3.2668716]
[1769398554685,6.08812001,121.4,121.34,3.2668716]
[1769398554885,3.32090561,121.4,121.34,3.2668716]
[1769398555091,3.32090561,121.4,121.35,3.2668716]
[1769398565105,3.32090561,121.4,121.33,10.93270235]
[1769398565312,6.08982156,121.39,121.33,10.93270235]
[1769398566509,6.08982156,121.39,121.34,3.50510235]
[1769398567112,3.32260716,121.39,121.34,3.50510235]
[1769398567413,6.08982156,121.39,121.34,3.50510235]
[1769398567609,3.32260716,121.39,121.34,3.50510235]
[1769398568408,6.08982156,121.39,121.34,3.50510235]
[1769398570514,6.08982156,121.38,121.34,3.50510235]
[1769398570718,3.32260716,121.37,121.32,3.50510235]
[1769398571018,6.08982156,121.37,121.32,3.50510235]
[1769398572718,2.7672144,121.36,121.32,3.50510235]
[1769398573120,6.08982156,121.37,121.32,3.50510235]
[1769398573420,3.32260716,121.37,121.32,3.50510235]
[1769398576016,6.08982156,121.37,121.32,3.50510235]
[1769398576719,3.26570915,121.36,121.31,3.55514005]
[1769398577320,3.26570915,121.36,121.29,218.8272144]
[1769398577321,3.26570915,121.42,121.36,3.55514005]
[1769398577517,3.26570915,121.4,121.34,3.55514005]
[1769398577723,3.26570915,121.4,121.35,3.55514005]
[1769398578618,6.03292355,121.4,121.35,3.55514005]
[1769398578818,3.26570915,121.39,121.33,13.74985445]
[1769398579019,6.03292355,121.39,121.33,3.55514005]
[1769398579220,3.26570915,121.38,121.33,3.55514005]
[1769398579423,3.26570915,121.38,121.31,2.7672144]
[1769398579424,6.03292355,121.36,121.31,3.55514005]
[1769398579620,3.26570915,121.36,121.31,3.55514005]
[1769398583022,2.7672144,121.37,121.31,3.55514005]
[1769398583226,3.26570915,121.39,121.32,6.32235445]
[1769398583430,3.26570915,121.39,121.33,3.55514005]
[1769398584328,3.26570915,121.37,121.31,10.98384005]
[1769398584629,6.03292355,121.37,121.31,3.55514005]
[1769398585925,6.03292355,121.36,121.31,3.55514005]
[1769398586524,3.26570915,121.36,121.31,3.55514005]
[1769398588729,6.03292355,121.36,121.29,220.84235445]
[1769398588933,6.03292355,121.36,121.29,218.07514005]
[1769398590134,6.03292355,121.36,121.3,3.55514005]
[1769398591426,3.26570915,121.35,121.3,3.55514005]
[1769398591633,6.03292355,121.35,121.3,3.55514005]
[1769398593634,3.26570915,121.35,121.3,3.55514005]
[1769398594830,6.03292355,121.35,121.29,214.52]
[1769398595129,3.43118224,121.34,121.29,214.52]
[1769398595330,3.43118224,121.34,121.29,220.81889083]
[1769398596134,3.43118224,121.34,121.29,218.05167643]
[1769398596931,10.1936144,121.36,121.29,218.05167643]
[1769398597133,3.43118224,121.36,121.3,3.53167643]
[1769398597637,3.43118224,121.36,121.3,6.29889083]
[1769398598935,10.1923144,121.38,121.31,3.53167643]
[1769398599141,3.43118224,121.38,121.32,6.29889083]
[1769398599638,3.43118224,121.38,121.33,3.53167643]
[1769398599833,3.43118224,121.38,121.33,6.29889083]
[1769398600030,10.85508224,121.4,121.33,6.29889083]
[1769398600229,3.43118224,121.39,121.34,3.53167643]
[1769398600433,2.7672144,121.41,121.34,6.29889083]
[1769398600633,6.19839664,121.41,121.35,3.53167643]
[1769398600838,115.4412,121.44,121.29,215.9539576]
[1769398600839,6.19839664,121.43,121.36,6.29889083]
[1769398601038,3.43118224,121.43,121.37,6.29889083]
[1769398601240,3.43118224,121.43,121.38,6.29889083]
[1769398601435,2.7672144,121.45,121.39,2.7672144]
[1769398601436,3.43118224,121.45,121.39,2.7672144]
[1769398601836,3.43118224,121.45,121.4,6.29889083]
[1769398602133,0.06121251,121.43,121.4,6.29889083]
[1769398602338,0.06121251,121.43,121.4,3.53167643]
[1769398602537,0.06121251,121.43,121.38,3.53167643]
[1769398602737,0.06121251,121.43,121.39,3.53167643]
[1769398603050,3.43118224,121.45,121.39,6.29889083]
[1769398607054,3.43118224,121.45,121.4,2.7672144]
[1769398607554,3.43118224,121.45,121.4,2.76497905]
[1769398609552,3.43118224,121.45,121.4,6.29665548]
[1769398611247,3.43118224,121.45,121.4,3.53167643]
[1769398613158,3.43118224,121.45,121.4,6.29665548]
[1769398616855,3.43118224,121.45,121.36,115.5121]
[1769398616856,10.84958224,121.49,121.42,2.76497905]
[1769398617059,10.84958224,121.49,121.43,6.29665548]
[1769398618055,10.84958224,121.49,121.44,2.76497905]
[1769398618357,10.84958224,121.49,121.43,6.29665548]
[1769398618658,13.61456129,121.49,121.43,3.53167643]
[1769398619554,10.84958224,121.49,121.43,3.53167643]
[1769398620753,3.43118224,121.46,121.41,3.53167643]
[1769398621057,2.76497905,121.45,121.39,3.53167643]
[1769398621447,6.19616129,121.45,121.39,3.53167643]
[1769398622651,3.43118224,121.45,121.39,3.53167643]
[1769398628566,6.19616129,121.45,121.39,3.53167643]
[1769398636472,6.19616129,121.45,121.39,10.95567643]
[1769398637971,6.19616129,121.45,121.4,3.33745216]
[1769398653598,3.43118224,121.45,121.4,3.33745216]
[1769398658791,0.06048402,121.44,121.4,3.33745216]
[1769398660597,3.31601508,121.43,121.38,3.52654179]
[1769398660797,6.08099413,121.42,121.36,3.52654179]
[1769398661794,0.06318567,121.4,121.36,3.52654179]
[1769398664101,2.76497905,121.42,121.36,3.52654179]
[1769398664303,2.76497905,121.42,121.38,3.52654179]
[1769398665892,6.08099413,121.42,121.38,3.52654179]
[1769398669804,3.31601508,121.42,121.38,3.52654179]
[1769398670007,3.31601508,121.42,121.37,0.05591264]
[1769398671206,3.31601508,121.42,121.37,3.58245443]
[1769398672010,3.31601508,121.42,121.37,0.05591264]
[1769398673410,2.76664245,121.41,121.37,0.05591264]
[1769398673808,6.08265753,121.41,121.37,0.05591264]
[1769398674015,3.31601508,121.4,121.37,0.05591264]
[1769398697040,3.39952882,121.42,121.37,3.48286597]
[1769398697231,3.39952882,121.44,121.37,3.48286597]
[1769398697533,3.39952882,121.44,121.38,6.19359578]
[1769398698538,3.39952882,121.44,121.4,0.05853981]
[1769398734571,3.39952882,121.44,121.36,3.33759573]
[1769398734875,3.52490267,121.4,121.34,13.52975799]
[1769398735771,3.52490267,121.4,121.34,6.10315799]
[1769398735975,3.52490267,121.4,121.34,3.33759573]
[1769398738579,3.52490267,121.4,121.34,6.10315799]
[1769398738780,3.52490267,121.4,121.35,3.33759573]
[1769398740777,3.52490267,121.4,121.33,6.10315799]
[1769398741081,3.52490267,121.38,121.31,331.3621806]
[1769398741378,3.52490267,121.38,121.31,328.59661834]
[1769398741580,6.29046493,121.38,121.31,331.3621806]
[1769398741881,3.58303068,121.36,121.31,328.59661834]
[1769398744885,3.58303068,121.36,121.31,331.3621806]
[1769398748896,3.58303068,121.36,121.32,3.37248304]
[1769398749196,3.356605,121.35,121.3,76.45248304]
[1769398750185,3.356605,121.35,121.3,73.08]
[1769398750387,6.12216726,121.35,121.3,73.08]
[1769398750682,3.356605,121.34,121.3,73.08]
[1769398750887,3.356605,121.34,121.29,3.37248304]
[1769398751286,3.356605,121.34,121.29,6.1380453]
[1769398751789,2.76556226,121.36,121.29,6.1380453]
[1769398751790,3.356605,121.36,121.3,3.37248304]
[1769398751996,3.356605,121.38,121.32,3.37248304]
[1769398752484,6.12216726,121.38,121.32,3.37248304]
[1769398752684,3.356605,121.37,121.32,3.37248304]
[1769398753890,3.356605,121.37,121.33,0.05390878]
[1769398756393,3.356605,121.39,121.34,3.37248304]
[1769398756793,6.22525602,121.41,121.35,3.27171056]
[1769398757091,3.45969376,121.41,121.35,6.03727282]
[1769398757794,3.45969376,121.39,121.33,6.03727282]
[1769398758092,3.45969376,121.38,121.33,3.27171056]
[1769398759397,3.45969376,121.38,121.34,0.05349216]
[1769398762801,3.45969376,121.37,121.3,3.27171056]
[1769398763100,3.45969376,121.36,121.3,6.03727282]
[1769398763504,3.45969376,121.35,121.28,6.03727282]
[1769398764305,0.05540741,121.33,121.28,6.03727282]
[1769398764497,0.05540741,121.33,121.29,2.76556226]
[1769398768007,0.05540741,121.33,121.29,6.03727282]
[1769398772000,3.51510117,121.33,121.27,102.51171056]
[1769398772206,3.45969376,121.32,121.27,3.27171056]
[1769398774304,3.45969376,121.32,121.21,7.4348]
[1769398774305,3.51880863,121.31,121.21,7.4348]
[1769398774506,3.51880863,121.28,121.22,3.26345118]
[1769398775803,0.05489953,121.26,121.22,3.26345118]
[1769398779612,6.28437089,121.29,121.22,3.26345118]
[1769398779819,3.51880863,121.29,121.23,0.05442277]
[1769398780108,3.51880863,121.29,121.23,3.31787395]
[1769398781411,6.28437089,121.29,121.23,3.31787395]
[1769398783017,3.51880863,121.29,121.23,3.31787395]
[1769398785315,3.51880863,121.31,121.26,3.26345118]
[1769398786209,3.51880863,121.34,121.27,3.32156515]
[1769398786416,3.51880863,121.34,121.28,3.26345118]
[1769398786718,3.51880863,121.34,121.28,6.02901344]
[1769398787416,3.51880863,121.34,121.3,0.05197823]
[1769398788513,3.51880863,121.34,121.24,3.26345118]
[1769398788514,6.28437089,121.32,121.24,3.26345118]
[1769398788721,6.28437089,121.31,121.25,3.26345118]
[1769398788913,3.51880863,121.31,121.25,3.26345118]
[1769398789317,3.51880863,121.31,121.25,6.02901344]
[1769398790516,2.76556226,121.32,121.26,3.26345118]
[1769398790722,3.51880863,121.33,121.27,3.26345118]
[1769398791123,3.51880863,121.33,121.27,6.02901344]
[1769398791624,3.51880863,121.33,121.27,6.0342809]
[1769398792526,3.51880863,121.28,121.2,7.4355]
[1769398792719,3.51880863,121.28,121.21,220.67082972]
[1769398793422,3.51880863,121.28,121.22,2.77082972]
[1769398794125,3.51880863,121.28,121.22,10.20512972]
[1769398794323,3.51880863,121.28,121.23,218.68]
[1769398795925,3.51880863,121.28,121.23,221.94345118]
[1769398797323,6.28963835,121.28,121.23,218.68]
[1769398797527,3.51880863,121.26,121.23,218.68]
[1769398797731,3.51880863,121.26,121.23,220.02]
[1769398798124,3.51880863,121.26,121.23,220.18]
[1769398800330,13.72063835,121.28,121.23,220.18]
[1769398800627,6.28963835,121.28,121.23,220.18]
[1769398801631,3.51880863,121.28,121.23,223.44345118]
[1769398802030,3.51880863,121.28,121.23,226.2142809]
[1769398802728,6.28963835,121.3,121.24,3.26345118]
[1769398803029,3.51880863,121.3,121.24,3.26345118]
[1769398803422,6.15886686,121.32,121.26,3.32271267]
[1769398803621,6.15886686,121.32,121.26,6.09354239]
[1769398803622,3.38803714,121.32,121.26,6.09354239]
[1769398803828,3.38803714,121.32,121.27,3.32271267]
[1769398804029,10.81553714,121.34,121.28,221.9]
[1769398804225,115.4931,121.39,121.29,6.09354239]
[1769398804532,3.38803714,121.36,121.29,6.09354239]
[1769398804737,3.38803714,121.36,121.3,6.09354239]
[1769398804929,3.38803714,121.38,121.31,6.09354239]
[1769398805127,3.38803714,121.38,121.32,2.77082972]
[1769398805326,3.38803714,121.38,121.33,201.86]
[1769398805725,10.19472972,121.4,121.33,207.95354239]